bitfinex-derivatives/quotes_BTCF0:USTF0_20250609
["timestamp","ask_amount","ask_price","bid_price","bid_amount"]
[1749440095697,0.4664566,105580.0,105570.0,1.16870674]
[1749440096599,0.4664566,105580.0,105570.0,1.31645832]
[1749440096900,0.4664566,105580.0,105570.0,1.16870674]
[1749440098499,0.4664566,105580.0,105570.0,0.96167536]
[1749440101904,0.6557939,105580.0,105570.0,0.96167536]
[1749440102305,0.4664566,105580.0,105570.0,0.96167536]
[1749440103418,0.4664566,105580.0,105570.0,1.07980463]
[1749440103907,0.4664566,105580.0,105570.0,0.96167536]
[1749440107010,0.6557939,105580.0,105570.0,0.96167536]
[1749440109208,0.6557939,105580.0,105570.0,0.96167254]
[1749440109411,0.6557939,105580.0,105570.0,1.10939557]
[1749440111516,0.2949939,105580.0,105570.0,1.10939557]
[1749440111816,0.6557939,105580.0,105570.0,1.10939557]
[1749440116317,0.5541939,105580.0,105570.0,1.10939557]
[1749440116516,0.3648566,105580.0,105570.0,1.10939557]
[1749440119422,0.0040566,105580.0,105570.0,1.10939557]
[1749440119724,0.3648566,105580.0,105570.0,1.10939557]
[1749440119919,0.3648566,105580.0,105570.0,0.96167254]
[1749440121422,0.3648566,105580.0,105570.0,1.26870392]
[1749440121829,0.3648566,105580.0,105570.0,1.16870392]
[1749440123224,0.3648566,105580.0,105570.0,0.96167254]
[1749440123918,0.3648566,105580.0,105570.0,1.10950408]
[1749440129624,0.3648566,105580.0,105570.0,0.96167254]
[1749440130421,0.3608,105580.0,105570.0,0.96167254]
[1749440131533,0.3648566,105580.0,105570.0,0.96167254]
[1749440132633,0.0040566,105580.0,105570.0,0.96167254]
[1749440133038,0.0040566,105580.0,105570.0,1.16862297]
[1749440136439,0.3648566,105580.0,105570.0,1.16862297]
[1749440138440,0.0040566,105580.0,105570.0,1.16862297]
[1749440138640,0.3648566,105580.0,105570.0,1.16862297]
[1749440139645,0.3648566,105580.0,105570.0,1.10949468]
[1749440143137,0.3648566,105580.0,105570.0,0.96167254]
[1749440143943,0.0040566,105580.0,105570.0,0.96167254]
[1749440144144,0.0040566,105580.0,105570.0,1.10951365]
[1749440144438,0.3648566,105580.0,105570.0,1.10951365]
[1749440154446,0.3648566,105580.0,105570.0,0.96167254]
[1749440154850,0.0040566,105580.0,105570.0,0.96167254]
[1749440155147,0.3648566,105580.0,105570.0,0.96167254]
[1749440156352,0.3648566,105580.0,105570.0,1.16868633]
[1749440159059,0.3648566,105580.0,105570.0,0.96167254]
[1749440161354,1.1497706,105580.0,105570.0,0.8971369]
[1749440161558,1.2434706,105580.0,105570.0,0.5002369]
[1749440161758,1.2434706,105580.0,105570.0,0.5002374]
[1749440167658,1.12608235,105580.0,105570.0,0.5002374]
[1749440171862,1.12608235,105580.0,105570.0,0.61762565]
[1749440171863,1.66208235,105580.0,105570.0,0.61762565]
[1749440172158,1.12608235,105580.0,105570.0,0.61762565]
[1749440172355,1.66208235,105580.0,105570.0,0.64962565]
[1749440172556,1.66208235,105580.0,105570.0,0.68142565]
[1749440174068,1.30128235,105580.0,105570.0,0.68142565]
[1749440175461,1.1838941,105580.0,105570.0,0.68142565]
[1749440175671,1.30128235,105580.0,105570.0,0.68142565]
[1749440180463,0.94048235,105580.0,105570.0,0.68142565]
[1749440180664,1.30128235,105580.0,105570.0,0.68142565]
[1749440181257,0.90948235,105580.0,105570.0,0.71262565]
[1749440181462,1.23798235,105580.0,105570.0,0.71262565]
[1749440183971,0.87718235,105580.0,105570.0,0.71262565]
[1749440184273,1.23392575,105580.0,105570.0,0.71262565]
[1749440185871,0.66752575,105580.0,105570.0,0.71262565]
[1749440186067,1.0860575,105580.0,105570.0,0.71262565]
[1749440186260,0.89672,105580.0,105570.0,0.81262565]
[1749440186466,0.3608,105580.0,105570.0,0.8717667]
[1749440186666,0.89672,105580.0,105570.0,0.81251812]
[1749440186865,0.53592,105580.0,105570.0,0.81251812]
[1749440187869,0.79508575,105590.0,105580.0,0.1893374]
[1749440188074,0.4622,105590.0,105580.0,0.4855139]
[1749440188371,1.0860395,105590.0,105580.0,0.6183139]
[1749440188560,1.0864395,105590.0,105580.0,0.92001798]
[1749440189269,1.0874395,105590.0,105580.0,0.92001798]
[1749440190274,1.0874395,105590.0,105580.0,0.92101798]
[1749440190568,0.89808,105590.0,105580.0,1.24634798]
[1749440190964,0.89668,105590.0,105580.0,1.24734798]
[1749440191165,0.89708,105590.0,105580.0,1.24734798]
[1749440191967,0.3608,105590.0,105580.0,1.28522798]
[1749440192272,0.89708,105590.0,105580.0,1.28522798]
[1749440192972,0.53628,105590.0,105580.0,1.28522798]
[1749440193572,0.1018,105590.0,105580.0,1.28522798]
[1749440193773,0.53624,105590.0,105580.0,1.28522798]
[1749440194274,0.53624,105590.0,105580.0,1.43278376]
[1749440195375,0.53624,105590.0,105580.0,1.28522798]
[1749440197571,0.1018,105590.0,105580.0,1.28522798]
[1749440198781,0.0004,105590.0,105580.0,1.28522798]
[1749440199671,0.0004,105590.0,105580.0,1.43272423]
[1749440199871,0.0004,105590.0,105580.0,1.22573057]
[1749440203582,0.0004,105590.0,105580.0,0.99095407]
[1749440203879,0.0004,105590.0,105580.0,1.22573057]
[1749440205377,0.0044566,105590.0,105580.0,1.22573057]
[1749440206384,0.0004,105590.0,105580.0,1.22573057]
[1749440207071,0.3612,105590.0,105580.0,1.22573057]
[1749440207476,0.3612,105590.0,105580.0,1.28522798]
[1749440209685,0.3612,105590.0,105580.0,1.2257499]
[1749440210287,0.3612,105590.0,105580.0,1.28522798]
[1749440213498,0.3652566,105590.0,105580.0,1.28522798]
[1749440214499,0.3612,105590.0,105580.0,1.28522798]
[1749440215397,0.0004,105590.0,105580.0,1.28522798]
[1749440215699,0.3612,105590.0,105580.0,1.43289217]
[1749440215898,0.3612,105590.0,105580.0,1.22589851]
[1749440217704,0.3652566,105590.0,105580.0,1.22589851]
[1749440218700,0.70206435,105590.0,105580.0,1.10851026]
[1749440218900,0.76696435,105590.0,105580.0,1.10851026]
[1749440219510,0.76696435,105590.0,105580.0,1.07571026]
[1749440220195,0.76696435,105590.0,105580.0,0.97571026]
[1749440222411,0.76696435,105590.0,105580.0,0.82804607]
[1749440222708,0.40616435,105590.0,105580.0,1.03503973]
[1749440222909,0.76696435,105590.0,105580.0,1.03503973]
[1749440223104,0.40616435,105590.0,105580.0,1.03503973]
[1749440223302,0.76696435,105590.0,105580.0,1.03503973]
[1749440223703,0.6495761,105590.0,105580.0,0.97586493]
[1749440224308,0.3953566,105590.0,105580.0,1.00826493]
[1749440225205,0.3953566,105590.0,105580.0,1.10826493]
[1749440225714,0.3913,105590.0,105580.0,1.10826493]
[1749440226212,0.3612,105590.0,105580.0,1.22565318]
[1749440226405,0.3608,105590.0,105580.0,1.07783432]
[1749440226811,0.3612,105590.0,105580.0,1.28482798]
[1749440227016,0.3608,105590.0,105580.0,1.07783432]
[1749440227204,0.3612,105590.0,105580.0,1.07783432]
[1749440228010,0.3608,105590.0,105580.0,1.07783432]
[1749440228206,0.3612,105590.0,105580.0,1.57907271]
[1749440228408,0.3608,105590.0,105580.0,1.57907271]
[1749440228608,0.3612,105590.0,105580.0,1.57907271]
[1749440228808,0.3612,105590.0,105580.0,1.28470478]
[1749440229414,0.0004,105590.0,105580.0,1.28470478]
[1749440232518,0.92776,105600.0,105590.0,0.1893195]
[1749440232715,0.92750873,105600.0,105590.0,0.84811865]
[1749440232917,0.46174873,105600.0,105590.0,0.84811865]
[1749440233117,0.46174873,105600.0,105590.0,1.04282907]
[1749440233711,0.46214873,105600.0,105590.0,1.10199117]
[1749440233907,0.46174873,105600.0,105590.0,1.10199117]
[1749440234110,0.46214873,105600.0,105590.0,0.89512071]
[1749440234316,0.46174873,105600.0,105590.0,0.89512071]
[1749440234510,0.46214873,105600.0,105590.0,0.89512071]
[1749440234718,0.46274873,105600.0,105590.0,0.89512071]
[1749440234918,0.46314873,105600.0,105590.0,0.89512071]
[1749440235321,0.46314873,105600.0,105590.0,1.10181857]
[1749440235522,0.46214873,105600.0,105590.0,1.10181857]
[1749440235720,0.46214873,105600.0,105590.0,1.10281857]
[1749440235924,0.46214873,105600.0,105590.0,1.10381857]
[1749440236115,0.46214873,105600.0,105590.0,1.13224857]
[1749440236711,0.46214873,105600.0,105590.0,1.17012857]
[1749440236911,0.3612,105600.0,105590.0,1.17012857]
[1749440237117,0.0004,105600.0,105590.0,1.17012857]
[1749440237420,0.3612,105600.0,105590.0,1.17012857]
[1749440237619,0.0004,105600.0,105590.0,1.17012857]
[1749440237924,0.3612,105600.0,105590.0,1.17012857]
[1749440238117,0.3612,105600.0,105590.0,1.07012857]
[1749440238823,0.0004,105600.0,105590.0,1.07012857]
[1749440239225,0.0004,105600.0,105590.0,1.1283767]
[1749440239522,0.90574273,105610.0,105600.0,0.1893017]
[1749440239820,0.90574273,105610.0,105600.0,0.634963]
[1749440240023,0.90574273,105610.0,105600.0,0.51692947]
[1749440240226,0.90574273,105610.0,105600.0,0.61163092]
[1749440240423,0.89608,105610.0,105600.0,0.61163092]
[1749440241726,0.90552903,105610.0,105600.0,0.61163092]
[1749440242021,0.90652903,105610.0,105600.0,0.61163092]
[1749440242324,0.90652903,105610.0,105600.0,0.49424267]
[1749440242624,0.89708,105610.0,105600.0,0.49424267]
[1749440242822,0.89708,105610.0,105600.0,0.64180041]
[1749440243019,0.89708,105610.0,105600.0,0.84849827]
[1749440243226,0.89708,105610.0,105600.0,0.94849827]
[1749440243820,0.89708,105610.0,105600.0,1.24539827]
[1749440244427,0.89708,105610.0,105600.0,1.03870041]
[1749440245425,0.89708,105610.0,105600.0,0.89114267]
[1749440245622,0.89708,105610.0,105600.0,1.03870041]
[1749440246330,0.89708,105610.0,105600.0,1.15608866]
[1749440246517,0.90678334,105610.0,105600.0,1.03870041]
[1749440247030,0.89708,105610.0,105600.0,1.03870041]
[1749440247322,0.92878,105610.0,105600.0,1.03870041]
[1749440248833,0.92878,105610.0,105600.0,0.92131216]
[1749440249026,0.92878,105610.0,105600.0,1.03870041]
[1749440249731,0.56798,105610.0,105600.0,1.03870041]
[1749440249932,0.92878,105610.0,105600.0,1.03870041]
[1749440252525,0.92878,105610.0,105600.0,0.92131216]
[1749440252821,0.92878,105610.0,105600.0,1.03870041]
[1749440253533,0.3935,105610.0,105600.0,1.15674712]
[1749440253731,0.82746,105610.0,105600.0,1.00918938]
[1749440255338,0.0050566,105610.0,105600.0,1.36933092]
[1749440255637,0.0050566,105610.0,105600.0,1.51688866]
[1749440256234,0.0050566,105610.0,105600.0,1.61688866]
[1749440257234,0.0050566,105610.0,105600.0,1.25608866]
[1749440257439,0.0050566,105610.0,105600.0,1.61688866]
[1749440257637,0.0050566,105610.0,105600.0,1.64531866]
[1749440258927,0.0054566,105610.0,105600.0,1.64531866]
[1749440260040,0.0054566,105610.0,105600.0,1.76270691]
[1749440260240,0.3608,105620.0,105610.0,0.30667205]
[1749440260538,0.3608,105620.0,105610.0,0.64695504]
[1749440260733,0.3612,105620.0,105610.0,0.64720631]
[1749440260933,0.3612,105620.0,105610.0,0.74189879]
[1749440261135,0.3612,105620.0,105610.0,0.62451054]
[1749440261336,0.3612,105620.0,105610.0,0.74189879]
[1749440261538,0.3612,105620.0,105610.0,0.74289879]
[1749440261736,0.3612,105620.0,105610.0,0.74389879]
[1749440261934,0.3612,105620.0,105610.0,0.5963158]
[1749440262136,0.3612,105620.0,105610.0,0.80301366]
[1749440262438,0.0004,105620.0,105610.0,0.80301366]
[1749440263033,1.20422237,105630.0,105620.0,0.1892657]
[1749440263233,1.20422237,105630.0,105620.0,0.45448914]
[1749440263744,1.20422237,105630.0,105620.0,0.54916369]
[1749440264134,1.20422237,105630.0,105620.0,0.66723743]
[1749440264545,1.20422237,105630.0,105620.0,0.55752351]
[1749440265639,1.32161062,105630.0,105620.0,0.55777478]
[1749440266941,1.20422237,105630.0,105620.0,0.55777478]
[1749440269344,1.20827897,105630.0,105620.0,0.55777478]
[1749440269732,1.20827897,105630.0,105620.0,0.44038653]
[1749440269938,1.32566722,105630.0,105620.0,0.55777478]
[1749440270845,1.32566722,105630.0,105620.0,0.59077478]
[1749440271644,1.20827897,105630.0,105620.0,0.59077478]
[1749440273546,1.20827897,105630.0,105620.0,0.7383587]
[1749440273748,1.20827897,105630.0,105620.0,0.62028496]
[1749440273950,0.84747897,105630.0,105620.0,0.62028496]
[1749440274148,1.20827897,105630.0,105620.0,0.62028496]
[1749440274543,1.20827897,105630.0,105620.0,0.64871496]
[1749440276759,0.67335897,105630.0,105620.0,0.64871496]
[1749440276960,1.20811897,105630.0,105620.0,0.64871496]
[1749440277459,1.19041816,105630.0,105620.0,0.64871496]
[1749440277757,1.30780641,105630.0,105620.0,0.64871496]
[1749440279559,1.30780641,105630.0,105620.0,0.61571496]
[1749440280554,1.19041816,105630.0,105620.0,0.61571496]
[1749440280759,1.30780641,105630.0,105620.0,0.49832671]
[1749440281454,1.30780641,105630.0,105620.0,0.21438646]
[1749440281661,1.36259379,105630.0,105620.0,0.06680254]
[1749440282146,1.36259379,105630.0,105620.0,0.1849394]
[1749440282147,1.7873356,105630.0,105620.0,0.1849394]
[1749440282352,1.82466306,105630.0,105620.0,0.15544598]
[1749440284163,1.57466306,105630.0,105620.0,0.15544598]
[1749440284964,1.82466306,105630.0,105620.0,0.15544598]
[1749440285158,1.57466306,105630.0,105620.0,0.15544598]
[1749440287558,1.57566306,105630.0,105620.0,0.15544598]
[1749440289057,1.45827481,105630.0,105620.0,0.15544598]
[1749440289557,1.57542468,105630.0,105620.0,0.15544598]
[1749440289760,1.81883643,105630.0,105620.0,0.15544598]
[1749440291470,1.93622468,105630.0,105620.0,0.15544598]
[1749440294271,1.21462468,105630.0,105620.0,0.15544598]
[1749440294471,1.93622468,105630.0,105620.0,0.15544598]
[1749440294667,1.81883643,105630.0,105620.0,0.15544598]
[1749440299176,1.81883643,105630.0,105620.0,0.06680254]
[1749440299369,1.28407643,105630.0,105620.0,0.06680254]
[1749440299675,1.72388443,105630.0,105620.0,0.06680254]
[1749440301275,1.60649618,105630.0,105620.0,0.06680254]
[1749440301462,1.72388443,105630.0,105620.0,0.06680254]
[1749440302873,1.72388443,105630.0,105620.0,0.15544598]
[1749440304577,1.60649618,105630.0,105620.0,0.15544598]
[1749440304777,1.72388443,105630.0,105620.0,0.15544598]
[1749440311675,1.66208443,105630.0,105620.0,0.15544598]
[1749440311879,0.1892657,105620.0,105610.0,0.11845967]
[1749440312076,0.91783128,105620.0,105610.0,0.11845967]
[1749440314371,0.91783128,105620.0,105610.0,0.00014228]
[1749440314976,0.92188788,105620.0,105610.0,0.00014228]
[1749440317081,1.28268788,105620.0,105610.0,0.00014228]
[1749440318873,1.28268788,105620.0,105610.0,0.03104228]
[1749440325784,1.28268788,105620.0,105610.0,0.00014228]
[1749440327387,1.28368788,105620.0,105610.0,0.00014228]
[1749440335789,1.71312788,105620.0,105610.0,0.00014228]
[1749440337082,0.99152788,105620.0,105610.0,0.00014228]
[1749440337279,1.71312788,105620.0,105610.0,0.00014228]
[1749440338091,0.99152788,105620.0,105610.0,0.00014228]
[1749440338286,1.71312788,105620.0,105610.0,0.00014228]
[1749440344094,0.99152788,105620.0,105610.0,0.00014228]
[1749440344294,1.71312788,105620.0,105610.0,0.00014228]
[1749440348697,1.59573963,105620.0,105610.0,0.00014228]
[1749440348894,1.47835138,105620.0,105610.0,0.03314228]
[1749440349186,1.59573963,105620.0,105610.0,0.06464228]
[1749440349592,1.59707122,105620.0,105610.0,0.06464228]
[1749440351493,0.87547122,105620.0,105610.0,0.06464228]
[1749440351696,1.59707122,105620.0,105610.0,0.06464228]
[1749440352904,0.87547122,105620.0,105610.0,0.06464228]
[1749440353090,1.59707122,105620.0,105610.0,0.06464228]
[1749440354201,1.65616896,105620.0,105610.0,0.06464228]
[1749440354606,0.93456896,105620.0,105610.0,0.06464228]
[1749440354905,1.65616896,105620.0,105610.0,0.06464228]
[1749440356607,1.65616896,105620.0,105610.0,0.09784228]
[1749440359710,0.93456896,105620.0,105610.0,0.09784228]
[1749440359907,1.75688896,105620.0,105610.0,0.09784228]
[1749440360712,1.03528896,105620.0,105610.0,0.09784228]
[1749440360899,1.75688896,105620.0,105610.0,0.09784228]
[1749440364115,1.65616896,105620.0,105610.0,0.09784228]
[1749440364316,2.19004896,105620.0,105610.0,0.09784228]
[1749440369321,1.59236896,105620.0,105610.0,0.09784228]
[1749440369521,1.91802297,105620.0,105610.0,0.40451483]
[1749440369817,2.03541122,105620.0,105610.0,0.21523053]
[1749440370017,2.03501122,105620.0,105610.0,0.21523053]
[1749440370212,1.91802297,105620.0,105610.0,0.21523053]
[1749440370412,2.03541122,105620.0,105610.0,0.21523053]
[1749440371921,2.03441122,105620.0,105610.0,0.21523053]
[1749440372115,1.91702297,105620.0,105610.0,0.33343052]
[1749440372323,2.03441122,105620.0,105610.0,0.33343052]
[1749440373022,2.03441122,105620.0,105610.0,0.21523053]
[1749440373321,2.03441122,105620.0,105610.0,0.33343052]
[1749440374424,2.03441122,105620.0,105610.0,0.21523053]
[1749440375623,2.03441122,105620.0,105610.0,0.09784228]
[1749440376413,2.03441122,105620.0,105610.0,0.21604227]
[1749440377226,1.91702297,105620.0,105610.0,0.09784228]
[1749440377519,2.03441122,105620.0,105610.0,0.09784228]
[1749440377824,2.03429122,105620.0,105610.0,0.09784228]
[1749440380718,2.15167947,105620.0,105610.0,0.09784228]
[1749440380918,2.21487947,105620.0,105610.0,0.09784228]
[1749440381119,2.24547947,105620.0,105610.0,0.00014228]
[1749440386724,2.24547947,105620.0,105610.0,0.02857228]
[1749440387031,2.2070588,105620.0,105610.0,0.02857228]
[1749440387231,2.24547381,105620.0,105610.0,0.02857228]
[1749440388530,2.24547381,105620.0,105610.0,0.06644228]
[1749440400237,2.24547381,105620.0,105610.0,0.15513829]
[1749440402636,2.01069731,105620.0,105610.0,0.15513829]
[1749440402938,2.24547381,105620.0,105610.0,0.15513829]
[1749440410642,2.24547381,105620.0,105610.0,0.12670829]
[1749440410843,2.24547381,105620.0,105610.0,0.15800829]
[1749440414545,2.24547381,105620.0,105610.0,0.18643829]
[1749440414734,1.52387381,105620.0,105610.0,0.18643829]
[1749440415044,2.24547381,105620.0,105610.0,0.18643829]
[1749440417848,1.52387381,105620.0,105610.0,0.18643829]
[1749440418046,2.24547381,105620.0,105610.0,0.18643829]
[1749440418742,1.52387381,105620.0,105610.0,0.18643829]
[1749440419144,2.24547381,105620.0,105610.0,0.18643829]
[1749440419339,1.71175381,105620.0,105610.0,0.18643829]
[1749440419539,2.24499381,105620.0,105610.0,0.18643829]
[1749440421148,2.24499381,105620.0,105610.0,0.15513829]
[1749440421444,2.30409155,105620.0,105610.0,0.15513829]
[1749440422346,2.30409155,105620.0,105600.0,0.21229999]
[1749440422347,0.1892843,105610.0,105600.0,0.11859999]
[1749440422541,0.73668756,105610.0,105600.0,0.11859999]
[1749440422735,0.73668756,105610.0,105600.0,0.18339999]
[1749440422940,0.73668756,105610.0,105600.0,0.21459999]
[1749440423544,1.23912756,105610.0,105600.0,0.21459999]
[1749440423753,1.12173931,105610.0,105600.0,0.21459999]
[1749440424046,1.23912756,105610.0,105600.0,0.21459999]
[1749440426654,0.70588756,105610.0,105600.0,0.21459999]
[1749440426857,1.23912756,105610.0,105600.0,0.21459999]
[1749440428961,0.87832756,105610.0,105600.0,0.21459999]
[1749440429162,1.59992756,105610.0,105600.0,0.21459999]
[1749440435756,1.48659591,105610.0,105600.0,0.21459999]
[1749440435958,1.60398416,105610.0,105600.0,0.21459999]
[1749440439163,1.60398416,105610.0,105600.0,0.0964]
[1749440439357,1.16604416,105610.0,105600.0,0.0964]
[1749440439550,1.69920416,105610.0,105600.0,0.0964]
[1749440440456,1.69920416,105610.0,105600.0,0.0004]
[1749440442461,1.70020416,105610.0,105600.0,0.0004]
[1749440447866,1.69993427,105610.0,105600.0,0.0004]
[1749440449162,1.58254602,105610.0,105600.0,0.0004]
[1749440449369,1.69993427,105610.0,105600.0,0.0322]
[1749440449968,2.12941427,105610.0,105600.0,0.0322]
[1749440451360,1.40781427,105610.0,105600.0,0.0322]
[1749440451561,2.12941427,105610.0,105600.0,0.0322]
[1749440455671,2.12941427,105610.0,105600.0,0.0004]
[1749440457562,2.12941427,105610.0,105600.0,0.11859999]
[1749440457771,2.12941427,105610.0,105600.0,0.15159999]
[1749440462883,2.01202602,105610.0,105600.0,0.15159999]
[1749440463082,2.12941427,105610.0,105600.0,0.15159999]
[1749440466283,2.12941427,105610.0,105600.0,0.18469999]
[1749440467784,2.12941427,105610.0,105600.0,0.21659999]
[1749440470576,1.59625427,105610.0,105600.0,0.21659999]
[1749440470783,2.12913427,105610.0,105600.0,0.21659999]
[1749440471484,2.06663427,105610.0,105600.0,0.21659999]
[1749440483687,2.06647427,105610.0,105600.0,0.21659999]
[1749440491599,1.34487427,105610.0,105600.0,0.21659999]
[1749440491801,2.06647427,105610.0,105600.0,0.21659999]
[1749440492502,2.06647427,105610.0,105600.0,0.18469999]
[1749440492689,0.1893204,105590.0,105580.0,0.02841]
[1749440492891,0.1893204,105590.0,105570.0,0.0959]
[1749440492892,0.1893383,105580.0,105570.0,0.0959]
[1749440493196,0.82305992,105580.0,105570.0,0.0959]
[1749440493393,0.82331119,105580.0,105570.0,0.11019046]
[1749440493593,0.70592294,105580.0,105570.0,0.11019044]
[1749440494198,0.82331119,105580.0,105570.0,0.0979]
[1749440494703,0.78516607,105580.0,105570.0,0.0979]
[1749440495903,0.78922267,105580.0,105570.0,0.13578]
[1749440496395,0.78922267,105580.0,105570.0,0.13778]
[1749440498798,0.78922267,105580.0,105570.0,0.13898]
[1749440506707,1.21878267,105580.0,105570.0,0.13898]
[1749440507612,1.57958267,105580.0,105570.0,0.13898]
[1749440508118,0.85798267,105580.0,105570.0,0.13898]
[1749440508320,1.57958267,105580.0,105570.0,0.13898]
[1749440509713,1.57958267,105580.0,105570.0,0.1011]
[1749440512620,1.57958267,105580.0,105570.0,0.13898]
[1749440518328,0.89008267,105580.0,105570.0,0.13898]
[1749440518524,1.61168267,105580.0,105570.0,0.13898]
[1749440519725,1.37690617,105580.0,105570.0,0.13898]
[1749440519920,1.61168267,105580.0,105570.0,0.13898]
[1749440521538,1.61168267,105580.0,105570.0,0.25693051]
[1749440522835,1.6515387,105580.0,105570.0,0.25693051]
[1749440525841,1.65178997,105580.0,105570.0,0.25693051]
[1749440527131,1.71498997,105580.0,105570.0,0.25693051]
[1749440528133,1.83237822,105580.0,105570.0,0.19303051]
[1749440528437,1.83237822,105580.0,105570.0,0.16103051]
[1749440528733,1.83237822,105580.0,105570.0,0.04308]
[1749440531239,1.48021347,105580.0,105570.0,0.04308]
[1749440531440,1.83237822,105580.0,105570.0,0.04308]
[1749440533342,1.48021347,105580.0,105570.0,0.04308]
[1749440533539,1.83237822,105580.0,105570.0,0.04308]
[1749440533735,1.48021347,105580.0,105570.0,0.04308]
[1749440533934,1.71498997,105580.0,105570.0,0.04308]
[1749440541545,1.81510997,105580.0,105570.0,0.04308]
[1749440543545,1.93249822,105580.0,105570.0,0.04308]
[1749440545943,1.81510997,105580.0,105570.0,0.04308]
[1749440552246,1.09350997,105580.0,105570.0,0.04308]
[1749440552447,1.81510997,105580.0,105570.0,0.04308]
[1749440553250,1.09350997,105580.0,105570.0,0.04308]
[1749440553453,1.81510997,105580.0,105570.0,0.04308]
[1749440559763,1.93249822,105580.0,105570.0,0.04308]
[1749440560062,1.81510997,105580.0,105570.0,0.04308]
[1749440560960,1.93249822,105580.0,105570.0,0.04308]
[1749440562969,1.58033347,105580.0,105570.0,0.04308]
[1749440573583,1.58033347,105580.0,105570.0,0.07378]
[1749440573979,1.58033347,105580.0,105570.0,0.08820442]
[1749440574179,1.58033347,105580.0,105570.0,0.07378]
[1749440574379,1.63944588,105580.0,105570.0,0.08820442]
[1749440574574,1.63944588,105580.0,105570.0,0.07378]
[1749440574979,1.63944588,105580.0,105570.0,0.08820442]
[1749440575282,1.63944588,105580.0,105570.0,0.07378]
[1749440575482,1.63944588,105580.0,105570.0,0.08820442]
[1749440575672,1.63944588,105580.0,105570.0,0.07378]
[1749440575875,1.63944588,105580.0,105570.0,0.08820433]
[1749440576184,1.63944588,105580.0,105570.0,0.08820193]
[1749440576581,1.58033347,105580.0,105570.0,0.08820193]
[1749440576985,1.63944588,105580.0,105570.0,0.08820193]
[1749440577183,1.58033347,105580.0,105570.0,0.08820193]
[1749440577483,1.58033347,105580.0,105570.0,0.0882117]
[1749440577685,1.63944588,105580.0,105570.0,0.07378]
[1749440577879,1.63944588,105580.0,105570.0,0.0882117]
[1749440578886,1.58033347,105580.0,105570.0,0.0882117]
[1749440579186,1.58033347,105580.0,105570.0,0.07378]
[1749440579386,1.58033347,105580.0,105570.0,0.08821171]
[1749440579988,1.58033347,105580.0,105570.0,0.07378]
[1749440580184,1.58033347,105580.0,105570.0,0.08821168]
[1749440580585,1.58033347,105580.0,105570.0,0.07378]
[1749440580787,1.58033347,105580.0,105570.0,0.08821158]
[1749440581184,1.63944588,105580.0,105570.0,0.08821158]
[1749440581389,1.63944588,105580.0,105570.0,0.12121158]
[1749440581689,1.63944588,105580.0,105570.0,0.1212104]
[1749440582394,1.63944588,105580.0,105570.0,0.1212071]
[1749440582580,1.63944588,105580.0,105570.0,0.12120709]
[1749440582985,0.91784588,105580.0,105570.0,0.12120709]
[1749440583291,1.63944588,105580.0,105570.0,0.12120709]
[1749440584095,0.91784588,105580.0,105570.0,0.12120694]
[1749440584280,1.20988588,105580.0,105570.0,0.10678]
[1749440584784,1.20988588,105580.0,105570.0,0.12120694]
[1749440584990,1.20988588,105580.0,105570.0,0.10678]
[1749440585187,1.20988588,105580.0,105570.0,0.12120694]
[1749440585388,1.20988588,105580.0,105570.0,0.10678]
[1749440585590,1.15077347,105580.0,105570.0,0.10678]
[1749440585789,1.15077347,105580.0,105570.0,0.12120685]
[1749440587093,1.15077347,105580.0,105570.0,0.12120684]
[1749440587287,1.15077347,105580.0,105570.0,0.10678]
[1749440587796,1.15077347,105580.0,105570.0,0.12120551]
[1749440588190,1.15077347,105580.0,105570.0,0.10678]
[1749440588688,1.58037347,105580.0,105570.0,0.12120551]
[1749440589085,1.58037347,105580.0,105570.0,0.10678]
[1749440589286,1.58037347,105580.0,105570.0,0.12120595]
[1749440589585,1.58037347,105580.0,105570.0,0.10678]
[1749440590094,1.58037347,105580.0,105570.0,0.12120595]
[1749440590692,1.58037347,105580.0,105570.0,0.12120592]
[1749440591195,1.41705347,105580.0,105570.0,0.12120592]
[1749440591390,1.91695347,105580.0,105570.0,0.10678]
[1749440591590,1.91695347,105580.0,105570.0,0.13778]
[1749440593796,1.19535347,105580.0,105570.0,0.13778]
[1749440593997,1.91695347,105580.0,105570.0,0.13778]
[1749440596499,1.87709744,105580.0,105570.0,0.13778]
[1749440596698,1.91696786,105580.0,105570.0,0.13778]
[1749440602502,1.94826786,105580.0,105570.0,0.13778]
[1749440608702,1.22666786,105580.0,105570.0,0.13778]
[1749440609005,1.94826786,105580.0,105570.0,0.13778]
[1749440613002,1.38496786,105580.0,105570.0,0.13778]
[1749440613208,1.44505744,105580.0,105570.0,0.44508571]
[1749440613411,1.87284084,105580.0,105570.0,0.59253827]
[1749440613709,1.87284084,105580.0,105570.0,0.56930715]
[1749440614505,1.87689744,105580.0,105570.0,0.56930715]
[1749440614705,1.87689744,105580.0,105570.0,0.68753612]
[1749440616709,1.87689744,105580.0,105570.0,0.98443612]
[1749440617310,1.51609744,105580.0,105570.0,0.98443612]
[1749440617709,1.51609744,105580.0,105570.0,0.83698356]
[1749440618807,1.51609744,105580.0,105570.0,0.85737356]
[1749440620307,1.08425744,105580.0,105570.0,0.85737356]
[1749440620507,1.51601744,105580.0,105570.0,0.88659715]
[1749440626613,1.15521744,105580.0,105570.0,0.88659715]
[1749440626916,1.51601744,105580.0,105570.0,0.88659715]
[1749440627517,1.51601744,105580.0,105570.0,1.00466163]
[1749440628620,1.15521744,105580.0,105570.0,1.00466163]
[1749440629016,1.51601744,105580.0,105570.0,1.00466163]
[1749440629814,1.51601744,105580.0,105570.0,0.88659715]
[1749440633622,1.08641744,105580.0,105570.0,0.88659715]
[1749440637431,0.72561744,105580.0,105570.0,0.88659715]
[1749440637637,1.08641744,105580.0,105570.0,0.88659715]
[1749440639635,0.65465744,105580.0,105570.0,0.88659715]
[1749440639939,0.65457744,105580.0,105570.0,0.98659715]
[1749440640130,1.08621744,105580.0,105570.0,1.08659715]
[1749440640836,0.72541744,105580.0,105570.0,1.18131715]
[1749440641536,0.72541744,105580.0,105570.0,1.08131715]
[1749440641537,1.08621744,105580.0,105570.0,1.08131715]
[1749440644041,0.55469744,105580.0,105570.0,1.08131715]
[1749440645339,0.36535914,105580.0,105570.0,1.08131715]
[1749440645939,0.36535914,105580.0,105570.0,0.93386459]
[1749440646137,0.36535914,105580.0,105570.0,1.08131715]
[1749440646440,0.00455914,105580.0,105570.0,1.03386459]
[1749440646641,0.00455914,105580.0,105570.0,1.24032282]
[1749440646838,0.00455914,105580.0,105570.0,1.39466459]
[1749440651246,0.00455914,105580.0,105570.0,1.60147131]
[1749440655847,0.00455914,105580.0,105570.0,1.50675131]
[1749440667258,0.00455914,105580.0,105570.0,1.93827131]
[1749440667558,0.00455914,105580.0,105570.0,1.57747131]
[1749440667760,0.00455914,105580.0,105570.0,1.93827131]
[1749440668756,0.19389644,105580.0,105570.0,1.93827131]
[1749440668960,0.00455914,105580.0,105570.0,1.93827131]